[Event "Serbian League 2024"]
[Site "Bajina Basta"]
[Date "2024.09.29"]
[Round "3.26"]
[White "Grigoryan, Karen H."]
[Black "Matlakov, Maxim"]
[Result "1-0"]
[ECO "A13"]
[WhiteElo "2569"]
[BlackElo "2636"]
[Annotator "TA"]
[PlyCount "77"]
[EventDate "2024.09.26"]
[EventType "team-tourn"]
[EventCountry "SRB"]
[SourceTitle "playchess.com"]
[Source "ChessBase"]
[SourceQuality "1"]
[TimeControl "40/5400+30:1800+30"]

{[%evp 13,77,0,7,2,7,-13,-10,-7,0,9,4,0,0,0,7,0,1,0,0,0,13,0,0,12,76,86,51,82,49,24,21,21,159,159,152,152,161,167,266,279,273,188,279,263,276,256,264,219,471,457,645,618,804,810,810,810,810,803,803,492,492,485,477,477,561,546]} 1. Nf3 {[%emt 0:00:41]} d5 {[%emt 0:00:15]} 2. e3 {[%emt 0:00:57]} Nf6 {[%emt 0:00:59]} 3. c4 {[%emt 0:00:15]} e6 {[%emt 0:00:20]} 4. b3 {[%emt 0:00:26]} c5 {[%emt 0:01:39]} 5. Bb2 {[%emt 0:00:08]} Nc6 {[%emt 0:00:18]} 6. cxd5 {[%emt 0:00:54]} exd5 {[%emt 0:00:22]} 7. Bb5 {[%emt 0:00:09]} Bd6 {[%emt 0:00:31]} 8. Nc3 {[%emt 0:06:14]} O-O {[%emt 0:02:01]} 9. d4 {[%emt 0:01:57]} cxd4 {[%emt 0:08:17]} 10. Nxd4 {[%emt 0:00:31] The position is equal.} Nxd4 {[%emt 0:01:04]} 11. Qxd4 {[%emt 0:00:11]} a6 {[%emt 0:00:09]} 12. Be2 {[%emt 0:01:25][%cal Oe1g1]} Re8 {[%emt 0:02:07]} 13. O-O {[%emt 0:05:44]} Be5 {[%emt 0:02:43]} 14. Qd2 {[%emt 0:02:13]} Be6 {[%emt 0:17:32]} 15. f4 {[%emt 0:05:32][%cal Bf2f4,Bf4f5,Bf5e6][%mdl 32]} Bc7 {[%emt 0:21:25]} 16. Bf3 {[%emt 0:02:03]} Qd6 {[%emt 0:07:45]} 17. Ne2 {[%emt 0:04:31]} Qe7 {[%emt 0:04:48]} 18. Bd4 {[%emt 0:03:04]} Ne4 {[%emt 0:08:25] [#]} (18... Bd6 $11 {remains equal.}) 19. Bxe4 $1 $16 {[%emt 0:01:36]} dxe4 {[%emt 0:00:01]} 20. f5 {[%emt 0:01:44]} Qd6 {[%emt 0:00:21]} 21. fxe6 {[%emt 0:13:39]} Qxh2+ {[%emt 0:00:14]} 22. Kf2 {[%emt 0:00:03]} Qh4+ {[%emt 0:03:30] White now steadily converts the win.} (22... fxe6 $11 {keeps the balance.} 23. Ke1 Rac8) 23. g3 {[%emt 0:00:17]} Qh2+ {[%emt 0:00:09]} 24. Ke1 {[%emt 0:00:05]} fxe6 {[%emt 0:04:50][%cal Oa8d8]} 25. Rc1 {[%emt 0:16:14]} Rf8 {[%emt 0:02:31] [#]} (25... Bxg3+ $142 26. Nxg3 Qxg3+ 27. Qf2 Qxf2+ 28. Kxf2 (28. Rxf2 Rac8 $18) 28... Rad8) 26. Rxf8+ $1 $18 {[%emt 0:03:58]} (26. Rxc7 Rxf1+ 27. Kxf1 Rf8+ 28. Nf4 (28. Ke1 $2 Qh1+) 28... Rxf4+ (28... Qxd2 $2 29. Rxg7+ Kh8 30. Rxb7+ $18) 29. gxf4 (29. Ke1 $2 Qh1+ 30. Ke2 Qf1#) 29... Qxd2 $19) 26... Rxf8 {[%emt 0:00:02]} 27. Qc3 {[%emt 0:02:18]} (27. Rxc7 $2 Qh1+) 27... Rf7 {[%emt 0:05:57]} (27... Bxg3+ $142 28. Kd1 e5 29. Nxg3 Qxg3 30. Qc4+ (30. Bxe5 Qg2 $11) 30... Kh8) 28. Qxc7 {[%emt 0:03:39]} Rxc7 {[%emt 0:00:07]} 29. Rxc7 {[%emt 0:00:05]} g6 {[%emt 0:00:16]} 30. Rxb7 {[%emt 0:01:35] aiming for a4.} Kf8 $2 {[%emt 0:02:43]} (30... Qh5 31. Rd7 Qa5+ 32. Nc3 Qh5 33. Rg7+ (33. Nxe4 $2 Qh1+ 34. Kd2 Qxe4 $19) 33... Kf8) 31. Rb6 {[%emt 0:02:22][%csl LRa6,LRe6] White is clearly winning.} g5 {[%emt 0:02:05]} (31... e5 $142) 32. Rxe6 {[%emt 0:01:20]} h5 {[%emt 0:00:04]} 33. Rxa6 {[%emt 0:06:24]} (33. Rxe4 $2 Qh1+ 34. Kd2 Qxe4 $19) 33... h4 {[%emt 0:01:13]} 34. gxh4 {[%emt 0:00:07]} gxh4 {[%emt 0:00:04]} 35. Rh6 {[%emt 0:05:22]} h3 {[%emt 0:00:05]} 36. Kd2 {[%emt 0:00:42]} Qg2 {[%emt 0:01:28]} 37. Be5 {[%emt 0:00:22]} Qg5 {[%emt 0:00:06]} 38. Bf4 {[%emt 0:02:56]} ({Stronger than} 38. Rxh3 Qxe5 39. Nd4 Qa5+ 40. Kc1 Qxa2 $11) ({Not} 38. Bd6+ Kg8 39. Bf4 (39. Rxh3 Qd5+ 40. Nd4 Qxd6 $11) 39... Qg7 $18) 38... Qd5+ {[%emt 0:00:08]} 39. Nd4 {[%emt 0:02:34] Weighted Error Value: White=0.26 (precise) /Black=0.49.  Mistake:       	---       	Black=6      Inaccurate:     	White=1     	Black=1      OK:         	White=10    	Black=7      Best:        	White=2     	Black=3      Strong:       	White=2     	---} 1-0

[Event "Serbian League 2024"]
[Site "Bajina Basta"]
[Date "2024.09.29"]
[Round "3.27"]
[White "Stojanovic, Mihajlo"]
[Black "Stankovic, Milos"]
[Result "1/2-1/2"]
[ECO "D30"]
[WhiteElo "2424"]
[BlackElo "2466"]
[Annotator "RC"]
[PlyCount "21"]
[EventDate "2024.09.26"]
[EventType "team-tourn"]
[EventCountry "SRB"]
[SourceTitle "playchess.com"]
[Source "ChessBase"]
[SourceQuality "1"]
[TimeControl "40/5400+30:1800+30"]

1. Nf3 {[%emt 0:00:04]} e6 {[%emt 0:00:23]} 2. c4 {[%emt 0:00:21]} Nf6 {[%emt 0:01:20]} 3. e3 {[%emt 0:00:16]} d5 {[%emt 0:01:35]} 4. d4 {[%emt 0:00:53]} a6 {[%emt 0:04:23]} 5. b3 {[%emt 0:00:43]} b6 {[%emt 0:05:13]} 6. Bd3 {[%emt 0:01:32]} Bd6 {[%emt 0:01:03]} 7. Nbd2 {[%emt 0:10:21]} Bb7 {[%emt 0:01:15]} 8. O-O {[%emt 0:04:21]} O-O {[%emt 0:01:28]} 9. Qc2 {[%emt 0:01:22]} dxc4 {[%emt 0:11:42]} 10. Nxc4 {[%emt 0:00:49]} Bxf3 {[%emt 0:04:46]} 11. gxf3 {[%emt 0:00:33]} 1/2-1/2

[Event "Serbian League 2024"]
[Site "Bajina Basta"]
[Date "2024.09.29"]
[Round "3.28"]
[White "Tadic, Stefan"]
[Black "Nestorovic, Nikola"]
[Result "1/2-1/2"]
[ECO "B70"]
[WhiteElo "2440"]
[BlackElo "2458"]
[Annotator "RC"]
[PlyCount "88"]
[EventDate "2024.09.26"]
[EventType "team-tourn"]
[EventCountry "SRB"]
[SourceTitle "playchess.com"]
[Source "ChessBase"]
[SourceQuality "1"]
[TimeControl "40/5400+30:1800+30"]

1. e4 {[%emt 0:00:08]} c5 {[%emt 0:00:07]} 2. Nf3 {[%emt 0:00:05]} d6 {[%emt 0:00:05]} 3. d4 {[%emt 0:00:03]} cxd4 {[%emt 0:00:06]} 4. Nxd4 {[%emt 0:00:03]} Nf6 {[%emt 0:00:14]} 5. Nc3 {[%emt 0:00:05]} Nc6 {[%emt 0:00:08]} 6. Bg5 {[%emt 0:00:08]} g6 {[%emt 0:00:06]} 7. Bc4 {[%emt 0:07:36]} Bg7 {[%emt 0:01:58]} 8. Nxc6 {[%emt 0:00:48]} bxc6 {[%emt 0:00:08]} 9. O-O {[%emt 0:07:20]} O-O {[%emt 0:01:32]} 10. Re1 {[%emt 0:04:46]} h6 {[%emt 0:14:13]} 11. Bh4 {[%emt 0:04:06]} Nd7 {[%emt 0:02:18]} 12. Qd2 {[%emt 0:04:03]} a5 {[%emt 0:05:23]} 13. Rad1 {[%emt 0:02:35]} a4 {[%emt 0:03:58]} 14. b3 {[%emt 0:01:29]} Ne5 {[%emt 0:10:31]} 15. Be2 {[%emt 0:03:27]} axb3 {[%emt 0:00:56]} 16. axb3 {[%emt 0:00:29]} g5 {[%emt 0:00:40]} 17. Bg3 {[%emt 0:00:45]} Qa5 {[%emt 0:00:34]} 18. Na4 {[%emt 0:04:42]} Qxd2 {[%emt 0:01:59]} 19. Rxd2 {[%emt 0:00:04]} Be6 {[%emt 0:00:38]} 20. f3 {[%emt 0:04:21]} Rfb8 {[%emt 0:03:18]} 21. Bf2 {[%emt 0:05:49]} c5 {[%emt 0:00:10]} 22. g3 {[%emt 0:01:15]} Nc6 {[%emt 0:22:48]} 23. f4 {[%emt 0:07:35]} Nd4 {[%emt 0:00:26]} 24. Bd1 {[%emt 0:07:04]} Ra5 {[%emt 0:20:00]} 25. e5 {[%emt 0:07:50]} gxf4 {[%emt 0:01:39]} 26. gxf4 {[%emt 0:01:25]} Bf5 {[%emt 0:03:17]} 27. Nc3 {[%emt 0:03:25]} dxe5 {[%emt 0:01:02]} 28. Nd5 {[%emt 0:04:23]} Kf8 {[%emt 0:00:20]} 29. fxe5 {[%emt 0:00:28]} Rd8 {[%emt 0:00:51]} 30. Nxe7 {[%emt 0:02:58]} Bxc2 {[%emt 0:01:48]} 31. Nc6 {[%emt 0:09:27]} Nxc6 {[%emt 0:01:14]} 32. Rxc2 {[%emt 0:01:26]} Ra1 {[%emt 0:01:05]} 33. Bh5 {[%emt 0:02:54]} Rxe1+ {[%emt 0:00:23]} 34. Bxe1 {[%emt 0:00:01]} Nxe5 {[%emt 0:01:31]} 35. Rxc5 {[%emt 0:03:17]} Nd3 {[%emt 0:00:22]} 36. Ba5 {[%emt 0:00:04]} Nxc5 {[%emt 0:02:03]} 37. Bxd8 {[%emt 0:00:05]} Nxb3 {[%emt 0:00:07]} 38. Kg2 {[%emt 0:00:40]} Nd4 {[%emt 0:00:25]} 39. Bb6 {[%emt 0:00:39]} Ne6 {[%emt 0:00:16]} 40. Bg4 {[%emt 0:00:07]} Be5 {[%emt 0:00:24]} 41. Bxe6 {[%emt 0:02:49]} fxe6 {[%emt 0:00:05]} 42. h3 {[%emt 0:00:01]} Kf7 {[%emt 0:00:59]} 43. Kf3 {[%emt 0:00:52]} Kg6 {[%emt 0:00:57]} 44. Ke4 {[%emt 0:00:04]} Bf6 {[%emt 0:02:27]} 1/2-1/2

[Event "Serbian League 2024"]
[Site "Bajina Basta"]
[Date "2024.09.29"]
[Round "3.29"]
[White "Todorovic, Goran M"]
[Black "Ratkovic, Milovan"]
[Result "0-1"]
[ECO "B94"]
[WhiteElo "2289"]
[BlackElo "2429"]
[Annotator "TA"]
[PlyCount "64"]
[EventDate "2024.09.26"]
[EventType "team-tourn"]
[EventCountry "SRB"]
[SourceTitle "playchess.com"]
[Source "ChessBase"]
[SourceQuality "1"]
[TimeControl "40/5400+30:1800+30"]

{[%evp 12,64,29,6,21,20,17,13,20,0,6,8,10,0,0,0,0,-6,0,0,18,19,13,27,62,57,68,0,0,0,45,35,92,106,87,36,40,0,0,0,0,-200,-199,-193,-183,-172,-174,-368,-338,-964,-964,-964,-962,-2243,-1920]} 1. e4 {[%emt 1:31:00]} c5 {[%emt 0:00:23]} 2. Nf3 {[%emt 0:00:00]} d6 {[%emt 0:00:16]} 3. d4 {[%emt 0:00:00]} cxd4 {[%emt 0:00:12]} 4. Nxd4 {[%emt 0:00:00]} Nf6 {[%emt 0:00:13]} 5. Nc3 {[%emt 0:00:00]} a6 {[%emt 0:00:17]} 6. Bg5 {[%emt 0:00:00]} Nbd7 {[%emt 0:00:27]} 7. Bc4 {[%emt 0:00:00]} Qb6 {[%emt 0:01:27]} 8. Bb3 {[%emt 0:00:00]} e6 {[%emt 0:00:42]} 9. Bxf6 {[%emt 0:00:00]} Nxf6 {[%emt 0:00:53] The position is equal.} 10. Qd2 {[%emt 0:00:00]} Nd7 {[%emt 0:04:14]} 11. O-O-O {[%emt 0:00:00]} Nc5 {[%emt 0:01:21]} 12. Rhe1 {[%emt 0:00:00][%cal Od4f5]} Bd7 {[%emt 0:05:57]} 13. f4 {[%emt 0:00:00]} O-O-O {[%emt 0:08:57]} 14. Kb1 {[%emt 0:00:00]} Kb8 {[%emt 0:01:10]} 15. f5 {[%emt 0:00:00]} Rc8 {[%emt 0:17:39]} 16. fxe6 {[%emt 0:00:00]} fxe6 {[%emt 0:03:46]} 17. e5 {[%emt 0:00:00]} Nxb3 {[%emt 0:24:13]} 18. axb3 {[%emt 0:00:00]} d5 {[%emt 0:04:47]} 19. Qg5 {[%emt 0:00:00]} ({White should try} 19. Nxd5 $1 $14 exd5 20. e6) 19... Bc5 $11 {[%emt 0:07:31]} 20. Qxg7 {[%emt 0:00:00]} Rhd8 {[%emt 0:00:40]} 21. Nce2 {[%emt 0:00:00]} a5 {[%emt 0:05:13]} (21... Bb5 $14) 22. Qxh7 $16 {[%emt 0:00:00]} a4 {[%emt 0:00:10]} 23. bxa4 {[%emt 0:00:00]} (23. Rf1 $16) 23... Bxa4 $14 {[%emt 0:00:19]} 24. Qd3 {[%emt 0:00:00]} Rg8 $1 {[%emt 0:00:15]} 25. Nc3 {[%emt 0:01:27]} Be8 {[%emt 0:02:03][%cal Oe8g6] And now ...Bg6! would win. A strong pair of Bishops.} 26. Nce2 $2 {[%emt 0:06:14]} (26. Re2 $1 $11) 26... Bg6 $1 $40 {[%emt 0:02:58][%mdl 128] Black attacks with force.} (26... Rxg2 27. Nf4 Bxd4 28. Qxd4 Qxd4 29. Rxd4 Rgxc2 30. Rb4 $11) 27. Qh3 {[%emt 0:02:19]} Bxd4 {[%emt 0:03:14]} 28. Nxd4 {[%emt 0:00:25][%cal Oh3a3] [#] aiming for Qa3!} Rc4 $1 {[%emt 0:00:05]} 29. Qe3 $2 {[%emt 0:01:14] [#]} (29. Qxe6 $2 {perishes.} Bxc2+ 30. Nxc2 Qxe6 $19) (29. Re2 {was called for.} Rxd4 30. Rxd4 Qxd4 31. Qxe6) 29... Rgc8 $1 {[%emt 0:00:04][%cal Oc4d4] White must now prevent ...Rxd4!} 30. Re2 $2 {[%emt 0:01:24] [#]} (30. Rd2 Rxd4 31. b3 (31. Rxd4 Rxc2 32. Qa3 Rc3+ 33. Ka2 Rxa3+ 34. bxa3 Qxd4 35. Rc1 Qd2+ 36. Kb3 Qxc1 37. a4 Bc2+ 38. Kc3 Bb1+ 39. Kb3 Qc4+ 40. Kb2 Qc2+ 41. Ka3 Qc3#)) 30... Rxc2 $3 {[%emt 0:04:05][%mdl 512] Black is clearly winning.} 31. Nxc2 {[%emt 0:00:45]} Bxc2+ {[%emt 0:00:16]} 32. Kc1 {[%emt 0:00:20]} Bf5+ {[%emt 0:01:37] Weighted Error Value: White=0.72/Black=0.07 (flawless) .  Loses game:     	White=1     	---        Mistake:       	White=4     	Black=1      Inaccurate:     	White=1     	Black=2      OK:         	White=7     	Black=7      Best:        	White=2     	---        Strong:       	---       	Black=4      Brilliant:      	---       	Black=1} (32... Bxd1+ 33. Kxd1 d4 34. Qd3 $11) 0-1

[Event "Serbian League 2024"]
[Site "Bajina Basta"]
[Date "2024.09.29"]
[Round "3.30"]
[White "Tadic, Branko"]
[Black "Arsovic, Goran"]
[Result "1-0"]
[ECO "A16"]
[WhiteElo "2424"]
[BlackElo "2356"]
[Annotator "TA"]
[PlyCount "51"]
[EventDate "2024.09.26"]
[EventType "team-tourn"]
[EventCountry "SRB"]
[SourceTitle "playchess.com"]
[Source "ChessBase"]
[SourceQuality "1"]
[TimeControl "40/5400+30:1800+30"]

{[%evp 9,51,32,29,39,37,13,2,12,4,11,26,20,29,35,26,26,35,28,52,44,46,55,166,170,157,162,264,253,267,249,248,244,245,233,286,292,380,348,414,373,493,482,484,433]} 1. Nf3 {[%emt 0:08:33]} Nf6 {[%emt 0:00:38]} 2. c4 {[%emt 0:00:10]} g6 {[%emt 0:01:11]} 3. g3 {[%emt 0:00:35]} d6 {[%emt 0:01:12]} 4. Nc3 {[%emt 0:01:57]} Bg7 {[%emt 0:01:45]} 5. Bg2 {[%emt 0:00:11]} c6 {[%emt 0:00:57]} 6. d4 {[%emt 0:04:15]} Bf5 {[%emt 0:02:40]} 7. Be3 {[%emt 0:07:51]} Ne4 {[%emt 0:07:32]} 8. Rc1 {[%emt 0:10:59][%cal Ba1c1,Bc1c3,Bc3a3][%mdl 32] The position is equal.} Nxc3 {[%emt 0:09:35]} 9. Rxc3 {[%emt 0:01:05]} Be4 {[%emt 0:07:18]} 10. Qc1 {[%emt 0:07:39]} Qa5 {[%emt 0:40:02]} 11. O-O {[%emt 0:02:07]} O-O {[%emt 0:01:58]} 12. Ra3 {[%emt 0:03:18]} Qb6 {[%emt 0:01:42]} 13. Rb3 {[%emt 0:02:13]} Qa6 {[%emt 0:00:27][%cal Ob7b5]} 14. Bh3 {[%emt 0:00:35]} Bxf3 $1 {[%emt 0:00:27]} 15. exf3 {[%emt 0:00:06]} e6 {[%emt 0:02:32] [#]} (15... b6 $14) 16. Ra3 $1 $18 {[%emt 0:03:30]} Qb6 {[%emt 0:00:36]} 17. d5 $36 {[%emt 0:00:15][%mdl 2048] White is on the roll.} Qd8 {[%emt 0:06:46]} (17... c5 {keeps fighting.}) 18. dxe6 {[%emt 0:01:01]} ({Inferior is} 18. Rxa7 Rxa7 19. Bxa7 exd5 $14) 18... fxe6 {[%emt 0:01:05]} 19. Bxe6+ {[%emt 0:00:39]} ({Much less strong is} 19. Bxa7 Qe7 20. Re1 e5 $18) 19... Kh8 {[%emt 0:00:04]} 20. Rd3 {[%emt 0:08:22] aiming for Rfd1.} Qe7 {[%emt 0:04:24]} 21. Bg4 {[%emt 0:02:46] Re1 is the strong threat. This pair of bishops is nice.} Na6 {[%emt 0:02:25]} 22. Rfd1 {[%emt 0:00:41]} h5 {[%emt 0:02:59]} 23. Bh3 {[%emt 0:00:20]} Rfd8 {[%emt 0:00:58]} 24. Qd2 {[%emt 0:01:57]} d5 {[%emt 0:02:11]} 25. cxd5 {[%emt 0:00:56]} cxd5 {[%emt 0:00:06]} 26. Rxd5 {[%emt 0:02:12] Weighted Error Value: White=0.04 (flawless) /Black=0.32.  Mistake:       	---       	Black=2      Inaccurate:     	---       	Black=2      OK:         	White=7     	Black=5      Best:        	White=1     	Black=1      Strong:       	White=1     	Black=1} 1-0

[Event "Serbian League 2024"]
[Site "Bajina Basta"]
[Date "2024.09.29"]
[Round "3.31"]
[White "Visakh N R"]
[Black "Tarhan, Adar"]
[Result "1/2-1/2"]
[ECO "A79"]
[WhiteElo "2504"]
[BlackElo "2474"]
[Annotator "RC"]
[PlyCount "178"]
[EventDate "2024.09.26"]
[EventType "team-tourn"]
[EventCountry "SRB"]
[SourceTitle "playchess.com"]
[Source "ChessBase"]
[SourceQuality "1"]
[TimeControl "40/5400+30:1800+30"]

1. d4 {[%emt 0:00:05]} Nf6 {[%emt 0:00:07]} 2. c4 {[%emt 0:00:06]} e6 {[%emt 0:00:04]} 3. Nf3 {[%emt 0:00:05]} c5 {[%emt 0:02:16]} 4. d5 {[%emt 0:00:22]} exd5 {[%emt 0:00:42]} 5. cxd5 {[%emt 0:00:03]} d6 {[%emt 0:00:30]} 6. e4 {[%emt 0:00:52]} g6 {[%emt 0:00:20]} 7. Nfd2 {[%emt 0:01:01]} Bg7 {[%emt 0:00:31]} 8. Be2 {[%emt 0:00:31]} O-O {[%emt 0:00:17]} 9. O-O {[%emt 0:00:21]} Re8 {[%emt 0:00:08]} 10. Nc3 {[%emt 0:00:10]} Na6 {[%emt 0:00:05]} 11. f3 {[%emt 0:04:29]} Nc7 {[%emt 0:02:23]} 12. a4 {[%emt 0:00:34]} b6 {[%emt 0:01:33]} 13. Kh1 {[%emt 0:00:09]} Rb8 {[%emt 0:02:07]} 14. Nb5 {[%emt 0:05:11]} a6 {[%emt 0:01:09]} 15. Na7 {[%emt 0:02:11]} Bb7 {[%emt 0:05:07]} 16. Nc4 {[%emt 0:01:50]} Ncxd5 {[%emt 0:03:33]} 17. exd5 {[%emt 0:41:18]} Nxd5 {[%emt 0:00:24]} 18. Bd3 {[%emt 0:02:30]} Nb4 {[%emt 0:01:42]} 19. Bf4 {[%emt 0:06:25]} Be5 {[%emt 0:05:20]} 20. Bxe5 {[%emt 0:03:36]} dxe5 {[%emt 0:00:06]} 21. Be4 {[%emt 0:01:33]} Bxe4 {[%emt 0:06:00]} 22. Qxd8 {[%emt 0:12:02]} Rexd8 {[%emt 0:03:11]} 23. fxe4 {[%emt 0:00:03]} Rb7 {[%emt 0:01:25]} 24. Nc8 {[%emt 0:00:23]} Rxc8 {[%emt 0:00:09]} 25. Nd6 {[%emt 0:00:01]} Rcc7 {[%emt 0:00:07]} 26. Nxb7 {[%emt 0:00:05]} Rxb7 {[%emt 0:00:05]} 27. Rad1 {[%emt 0:05:19]} b5 {[%emt 0:04:26]} 28. axb5 {[%emt 0:00:38]} axb5 {[%emt 0:00:05]} 29. b3 {[%emt 0:00:23]} Kg7 {[%emt 1:01:08]} 30. Rd8 {[%emt 0:04:49]} Nc2 {[%emt 0:00:00]} 31. Rc8 {[%emt 0:01:20]} c4 {[%emt 0:00:00]} 32. bxc4 {[%emt 0:00:09]} bxc4 {[%emt 0:00:00]} 33. h3 {[%emt 0:02:11]} Ne3 {[%emt 0:00:00]} 34. Re1 {[%emt 0:00:07]} Rb3 {[%emt 0:00:00]} 35. Kg1 {[%emt 0:03:18]} Rd3 {[%emt 0:00:00]} 36. Rc7 {[%emt 0:01:20]} c3 {[%emt 0:00:00]} 37. Kf2 {[%emt 0:00:07]} Nd1+ {[%emt 0:00:00]} 38. Kg1 {[%emt 0:01:13]} Kh6 {[%emt 0:00:00]} 39. Rf1 {[%emt 0:00:30]} c2 {[%emt 0:00:00]} 40. Rxc2 {[%emt 0:02:38]} Ne3 {[%emt 0:00:00]} 41. Rc5 {[%emt 0:30:29]} Nxf1 {[%emt 0:00:00]} 42. Kxf1 {[%emt 0:00:03]} f6 {[%emt 0:00:00]} 43. Kf2 {[%emt 0:00:00]} Kg5 {[%emt 0:00:00]} 44. g3 {[%emt 0:00:00]} Ra3 {[%emt 0:00:00]} 45. Rc7 {[%emt 0:00:00]} Ra4 {[%emt 0:00:00]} 46. Kf3 {[%emt 0:00:00]} Kh6 {[%emt 0:00:00]} 47. Rc6 {[%emt 0:00:00]} Ra1 {[%emt 0:00:00]} 48. Kf2 {[%emt 0:00:00]} Kg5 {[%emt 0:00:00]} 49. Rc7 {[%emt 0:00:00]} h6 {[%emt 0:00:00]} 50. Rc6 {[%emt 0:00:00]} Ra4 {[%emt 0:00:00]} 51. Kf3 {[%emt 0:00:00]} f5 {[%emt 0:00:00]} 52. h4+ {[%emt 0:00:00]} Kh5 {[%emt 0:00:00]} 53. exf5 {[%emt 0:00:00]} gxf5 {[%emt 0:00:00]} 54. Rc5 {[%emt 0:00:00]} Ra3+ {[%emt 0:00:00]} 55. Kf2 {[%emt 0:00:53]} Kg4 {[%emt 0:00:00]} 56. Rxe5 {[%emt 0:00:05]} Rf3+ {[%emt 0:00:00]} 57. Ke2 {[%emt 0:02:15]} Rxg3 {[%emt 0:00:00]} 58. Re8 {[%emt 0:01:37]} Rg2+ {[%emt 0:00:00]} 59. Kf1 {[%emt 0:00:01]} Ra2 {[%emt 0:00:00]} 60. Rf8 {[%emt 0:02:32]} f4 {[%emt 0:00:00]} 61. Rg8+ {[%emt 0:00:26]} Kf3 {[%emt 0:00:00]} 62. Kg1 {[%emt 0:00:01]} Ra6 {[%emt 0:00:00]} 63. Kh2 {[%emt 0:01:02]} Re6 {[%emt 0:00:00]} 64. Ra8 {[%emt 0:01:35]} Kf2 {[%emt 0:00:00]} 65. Ra2+ {[%emt 0:00:37]} Re2 {[%emt 0:00:00]} 66. Ra1 {[%emt 0:00:01]} f3 {[%emt 0:00:00]} 67. h5 {[%emt 0:00:48]} Rd2 {[%emt 0:06:20]} 68. Kh3 {[%emt 0:00:08]} Rd5 {[%emt 0:00:42]} 69. Ra2+ {[%emt 0:00:05]} Ke3 {[%emt 0:00:03]} 70. Ra3+ {[%emt 0:00:06]} Ke2 {[%emt 0:03:16]} 71. Ra2+ {[%emt 0:00:38]} Rd2 {[%emt 0:00:06]} 72. Ra1 {[%emt 0:00:08]} Ke3 {[%emt 0:01:36]} 73. Ra3+ {[%emt 0:01:02]} Kf2 {[%emt 0:00:17]} 74. Ra1 {[%emt 0:00:07]} Re2 {[%emt 0:00:41]} 75. Kh2 {[%emt 0:00:22]} Re5 {[%emt 0:00:37]} 76. Ra2+ {[%emt 0:00:06]} Ke3 {[%emt 0:00:04]} 77. Ra3+ {[%emt 0:00:07]} Kf4 {[%emt 0:00:05]} 78. Ra4+ {[%emt 0:00:39]} Re4 {[%emt 0:00:18]} 79. Ra6 {[%emt 0:00:40]} Re2+ {[%emt 0:01:16]} 80. Kg1 {[%emt 0:00:48]} Kg5 {[%emt 0:00:57]} 81. Rg6+ {[%emt 0:00:19]} Kxh5 {[%emt 0:00:55]} 82. Rg3 {[%emt 0:00:05]} Re1+ {[%emt 0:00:39]} 83. Kf2 {[%emt 0:00:06]} Ra1 {[%emt 0:00:09]} 84. Rxf3 {[%emt 0:00:07]} Kg4 {[%emt 0:00:04]} 85. Rb3 {[%emt 0:00:09]} h5 {[%emt 0:00:13]} 86. Kg2 {[%emt 0:00:03]} Ra2+ {[%emt 0:00:03]} 87. Kg1 {[%emt 0:00:06]} h4 {[%emt 0:00:07]} 88. Rb4+ {[%emt 0:00:05]} Kg3 {[%emt 0:00:03]} 89. Rb3+ {[%emt 0:00:05]} Kg4 {[%emt 0:00:03]} 1/2-1/2

[Event "Serbian League 2024"]
[Site "Bajina Basta"]
[Date "2024.09.29"]
[Round "3.32"]
[White "Celik, Hasan Huseyin"]
[Black "Vignesh N R"]
[Result "1/2-1/2"]
[ECO "A28"]
[WhiteElo "2425"]
[BlackElo "2511"]
[Annotator "TA"]
[PlyCount "45"]
[EventDate "2024.09.26"]
[EventType "team-tourn"]
[EventCountry "SRB"]
[SourceTitle "playchess.com"]
[Source "ChessBase"]
[SourceQuality "1"]
[TimeControl "40/5400+30:1800+30"]

{[%evp 16,45,31,37,26,20,20,14,18,18,21,16,7,18,27,12,22,20,14,23,14,23,25,14,18,20,27,0,27,0,20,0]} 1. c4 Nf6 2. Nc3 e5 3. Nf3 Nc6 {[%emt 1:32:00]} 4. e3 Bb4 {[%emt 0:00:30]} 5. Qc2 Bxc3 6. Qxc3 Qe7 {[%emt 0:01:00]} 7. a3 {[%cal Ba2a3,Ba3b4][%mdl 32]} a5 {[%emt 0:00:30]} 8. b4 axb4 {[%emt 0:00:30]} 9. axb4 Rxa1 10. Qxa1 e4 {[%emt 0:01:00]} 11. b5 exf3 {[%emt 0:00:30]} 12. bxc6 {[#] And now Qa8 would win.} fxg2 {[%emt 0:00:30]} 13. cxd7+ Qxd7 {[%emt 0:00:30]} 14. Bxg2 O-O {[%emt 0:00:30]} 15. Bb2 Rd8 {[%emt 0:00:30]} 16. O-O Qxd2 (16... Ne8 {simplifies} 17. d4 Nd6 18. d5 f6) 17. Bxf6 {[%emt 1:39:00]} gxf6 {[%emt 0:01:00]} 18. Qxf6 {[%emt 0:00:30] [#] Bd5 is the strong threat.} Qd6 {[%emt 0:00:30]} 19. Qg5+ {[%emt 0:00:30]} Kf8 $1 {[%emt 0:00:30]} 20. Qh4 {[%emt 0:00:30]} Kg7 {[%emt 0:00:30]} 21. Qg5+ {[%emt 0:00:30]} Kf8 $1 {[%emt 0:00:30]} 22. Qh4 {[%emt 0:00:30]} Kg7 {[%emt 0:00:30]} 23. Qg5+ {[%emt 0:00:30] A rather calm draw.   Weighted Error Value: White=0.08 (flawless) /Black=0.01 (flawless) .  OK:         	White=6     	Black=7      Best:        	White=2     	---        Strong:       	---       	Black=2} 1/2-1/2